Cogmind - Beta 16 @@@ ROGUE MODE // 2025.10.24 @ 20:05:10 Player: FrigidRock Result: Destroyed by DAS Turret with DAS Cannon Performance ------------- Evolutions (0) 0 Regions Visited (3) 600 Robots Destroyed (8) 40 Value Destroyed (61) 61 Prototype IDs (0) 0 Alien Tech Used (0) 0 Bonus (-23) -23 TOTAL SCORE: 678 Bonus ------- Friendly Fire -23 Cogmind --------- Core Integrity 0/250 Matter 300/300 Energy 30/100 System Corruption 2% Temperature Cool (25) Movement Core (200) Ox3 Location -10/Exiles Parts ------- > --- POWER (1) -------- (None) > --- PROPULSION (2) --- (None) > --- UTILITY (2) ------ Medium Storage Unit > --- WEAPON (2) ------- (None) > --- INVENTORY (10) --- Ion Engine Small Storage Unit Large Storage Unit Medium Matter Pod (100) Small Laser Assault Rifle Peak State ------------ > --- POWER ------------ Ion Engine > --- PROPULSION ------- Aluminum Leg Aluminum Leg > --- UTILITY ---------- Small Storage Unit Medium Storage Unit > --- WEAPON ----------- Medium Laser Assault Rifle > --- INVENTORY -------- Ion Engine Large Storage Unit Medium Matter Pod Small Laser Assault Rifle Mining Laser [Rating: 7] Favorites ----------- Power Ion Engine Engine Ion Engine Propulsion Aluminum Leg Leg Aluminum Leg Utility Small Storage Unit Storage Small Storage Unit Weapon Assault Rifle Energy Gun Medium Laser Ballistic Gun Assault Rifle Special Weapon Mining Laser Build | -11 -10 -10 -10 ------- Run | Yrd Mat Min Exi Slots Evolved . | . . . . Power . | . . . . Propulsion . | . . . . Utility . | . . . . Weapon . | . . . . Parts Attached 9 | 6 1 . 2 Power 1 | 1 . . . Engine 1 | 1 . . . Core . | . . . . Reactor . | . . . . Propulsion 2 | 2 . . . Treads . | . . . . Leg 2 | 2 . . . Wheel . | . . . . Hover . | . . . . Flight . | . . . . Utility 2 | 1 . . 1 Device . | . . . . Storage 2 | 1 . . 1 Processor . | . . . . Hackware . | . . . . Protection . | . . . . Artifact . | . . . . Weapon 4 | 2 1 . 1 Energy Gun 1 | . 1 . . Energy Cannon . | . . . . Ballistic Gun 2 | 2 . . . Ballistic Cannon . | . . . . Launcher . | . . . . Special Weapon 1 | . . . 1 Impact Weapon . | . . . . Slashing Weapon . | . . . . Piercing Weapon . | . . . . Special Melee Weapon . | . . . . Unidentified Prototypes . | . . . . Parts Lost 6 | . . . 6 Power 1 | . . . 1 Propulsion 2 | . . . 2 Utility . | . . . . Weapon 3 | . . . 3 Highest Loss Streak 6 | . . . 6 To Critical Strikes . | . . . . Average Backups 3 | 1 2 4 4 Power . | . 1 1 1 Propulsion . | . . . . Utility . | . . . . Weapon 2 | . 1 3 2 Tool/Special . | . . . . Unused Backups 4 | . . . 4 Power 1 | . . . 1 Propulsion . | . . . . Utility 2 | . . . 2 Weapon 1 | . . . 1 Tool/Special . | . . . . Average Slot Usage (%) 84 | . 85 85 83 Engine 13 | . 14 14 13 Leg 27 | . 28 28 27 Storage 14 | . 14 14 14 Energy Gun 11 | . 1 14 14 Ballistic Gun 16 | . 26 14 13 Peak Build Rating 7 | 6 6 6 7 Average Rating 5 | 4 6 6 5 On Entrance 4 | . 6 6 6 Avg Prop Armor Cover (%) . | . . . . Naked Turns . | . . . . Heaviest Build 19 | 14 14 14 19 Greatest Support 20 | 20 20 20 20 Greatest Overweight (x) 3 | 3 . . 1 Average Overweight (x) . | . . . . Largest Inventory Capacity 10 | 8 8 8 10 Average Capacity 8 | 7 8 8 8 Most Carried 7 | 2 4 4 7 Average Carried 3 | 1 2 4 4 Final Capacity 10 | 8 8 8 10 Final Carried 6 | 2 4 4 6 Class Distribution -------------------- 100% | Mutant Dominant Class ---------------- Mutant | -10/Materials Mutant | -10/Mines Mutant | -10/Exiles Resources | -11 -10 -10 -10 ----------- Run | Yrd Mat Min Exi Matter Collected 360 | 238 94 16 12 Remotely . | . . . . Salvage Created 265 | 28 180 57 . Parts 18 | 3 13 2 . Haulers Intercepted . | . . . . Recyclers Shooed . | . . . . Parts Field Recycled . | . . . . Retrieved Matter . | . . . . Parts Self-Destructed . | . . . . Prevented . | . . . . Parts Restored . | . . . . Kills | -11 -10 -10 -10 ------- Run | Yrd Mat Min Exi Combat Hostiles Destroyed 3 | . 3 . . Guns 3 | . 3 . . Classes Destroyed 4 | 1 3 . . Builder 1 | . 1 . . Tunneler 2 | 1 1 . . Recycler 2 | . 1 1 . Swarmer 3 | . 3 . . Best Kill Streak 6 | 1 6 1 . Combat Bots Only 3 | . 3 . . Max Kills in Single Turn 2 | 1 2 1 . Gunslinging . | . . . . Exploded . | . . . . Melee . | . . . . Uniques/NPCs Destroyed . | . . . . Combat | -11 -10 -10 -10 -------- Run | Yrd Mat Min Exi Hostile Shots Fired 36 | . 6 . 30 Missed 9 | . 2 . 7 Hits 27 | . 4 . 23 Melee 4 | . . . 4 Projectile 23 | . 4 . 19 Critical Strikes 1 | . . . 1 Damage Taken 888 | . 32 . 856 Core 275 | . 25 . 250 Absorbed by Shields . | . . . . Core Remaining (%) 100 | 100 . . . Volleys Fired 19 | 5 7 2 5 Largest 2 | 2 2 2 2 Hottest 150 | 40 40 70 150 Shots Fired 36 | 10 14 4 8 Gun 34 | 10 14 4 6 Cannon . | . . . . Launcher . | . . . . Special 2 | . . . 2 Kinetic 28 | 10 14 2 2 Thermal 8 | . . 2 6 Explosive . | . . . . Electromagnetic . | . . . . Robot Hit Streak 5 | 2 5 4 5 Robot Miss Streak 2 | 2 1 . 2 Penetration Max . | . . . . Secondary Targets . | . . . . Shots Hit Robots 21 | 6 8 4 3 Core Hits 12 | 1 8 1 2 Critical Kills . | . . . . Critical Parts Destroyed . | . . . . Critical Strikes . | . . . . Melee Attacks . | . . . . Impact . | . . . . Slashing . | . . . . Piercing . | . . . . Sneak Attacks . | . . . . Combat Hostiles . | . . . . Follow-up Attacks . | . . . . Damage Inflicted 320 | 81 116 51 72 Guns 296 | 81 116 51 48 Cannons . | . . . . Explosions . | . . . . Melee . | . . . . Ramming . | . . . . Kinetic 235 | 81 116 27 11 Thermal 85 | . . 24 61 Explosive . | . . . . Electromagnetic . | . . . . Impact . | . . . . Slashing . | . . . . Piercing . | . . . . Highest Corruption 2 | . 2 2 2 Average Corruption 1 | . 1 2 2 Corruption Purged . | . . . . Corruption Blocked . | . . . . Effects 4 | . 1 . 3 Message Errors 1 | . . . 1 Matter Fused 1 | . . . 1 Parts Fused 1 | . 1 . . Data Loss (minor) 1 | . . . 1 Overload Shots . | . . . . Overflow Damage . | . . . . Projectiles . | . . . . Explosions . | . . . . Melee . | . . . . Knockbacks . | . . . . Impact . | . . . . Kinetic . | . . . . Secondary . | . . . . Self-Inflicted Damage . | . . . . Shots . | . . . . Rammed . | . . . . Targets Rammed . | . . . . Kicked . | . . . . Crushed . | . . . . Highest Temperature 25 | . . 18 25 Average Temperature 12 | . . 10 14 Received Heat Transfer . | . . . . Siege Activations . | . . . . Martial Activations . | . . . . Shielding Activations . | . . . . Robots Disrupted . | . . . . Combat Hostiles . | . . . . Robots Corrupted . | . . . . Combat Hostiles . | . . . . Parts Fried . | . . . . Impact Corruptions . | . . . . Robots Melted . | . . . . Combat Hostiles . | . . . . Parts Melted . | . . . . Heat Transferred 235 | . . 74 161 Parts Sabotaged . | . . . . Parts Stolen . | . . . . Parts Stripped . | . . . . Power Chain Reactions . | . . . . Alert | -11 -10 -10 -10 ------- Run | Yrd Mat Min Exi Maximum Alert Level . | . . . . Low Security (%) 100 | 100 100 100 . Level 1 . | . . . . Level 2 . | . . . . Level 3 . | . . . . Level 4 . | . . . . Level 5 . | . . . . High Security . | . . . . Max Security . | . . . . Peak Influence 70 | 5 70 17 . Initial 17 | . 3 17 . Average 15 | . 35 3 . Influence Increases 95 | 5 85 5 . Destroy 0b10 Robot/C 60 | . 60 . . Destroy 0b10 Robot/NC 25 | 5 15 5 . Destroy Leader 10 | . 10 . . Influence Decreases 95 | . 45 50 . Entered New Map 30 | . 2 28 . Time Decay 65 | . 43 22 . Squads Dispatched . | . . . . Investigation . | . . . . Extermination . | . . . . Reinforcement . | . . . . Assault . | . . . . Garrison . | . . . . Intercept . | . . . . Searches Triggered . | . . . . Construction Impeded . | . . . . Haulers Reinforced . | . . . . Active Scanning Responses . | . . . . Cargo Convoy Interrupts . | . . . . Stealth | -11 -10 -10 -10 --------- Run | Yrd Mat Min Exi Distress Signals . | . . . . Communications Jammed . | . . . . Distress Signals . | . . . . Times Spotted 13 | . 4 . 9 Peak Tracking Total 13 | . 2 . 13 Tactical Retreats . | . . . . Traps | -11 -10 -10 -10 ------- Run | Yrd Mat Min Exi Traps Triggered 2 | . 2 . . Indirectly . | . . . . Trap Hack Attempts . | . . . . Triggered . | . . . . Disarmed . | . . . . Reprogrammed . | . . . . Reused . | . . . . Traps Extracted . | . . . . Installed . | . . . . Triggered . | . . . . Machines | -11 -10 -10 -10 ---------- Run | Yrd Mat Min Exi Machines Disabled . | . . . . Max in Single Turn . | . . . . Machines Repaired . | . . . . Machines Dismantled . | . . . . Machines Sabotaged . | . . . . Overloaded Fab Kills . | . . . . Hacking | -11 -10 -10 -10 --------- Run | Yrd Mat Min Exi Machines Accessed 1 | . . . 1 Terminals . | . . . . Fabricators . | . . . . Repair Stations . | . . . . Recycling Units . | . . . . Scanalyzers . | . . . . Garrison Access . | . . . . Total Hacks 4 | . . . 4 Successful 4 | . . . 4 Failed . | . . . . Catastrophic . | . . . . Database Lockouts . | . . . . Manual . | . . . . Terminals . | . . . . Fabricators . | . . . . Repair Stations . | . . . . Recycling Units . | . . . . Scanalyzers . | . . . . Garrison Access . | . . . . Terminal Hacks 4 | . . . 4 Record 4 | . . . 4 Fabricator Hacks . | . . . . Repair Station Hacks . | . . . . Recycling Unit Hacks . | . . . . Scanalyzer . | . . . . Garrison Access Hacks . | . . . . Unauthorized Hacks . | . . . . Terminals . | . . . . Fabricators . | . . . . Repair Stations . | . . . . Recycling Units . | . . . . Scanalyzers . | . . . . Garrison Access . | . . . . Data Cores Recovered . | . . . . Used . | . . . . Hacking Detections . | . . . . Full Trace Events . | . . . . Feedback Events . | . . . . Feedback Blocked . | . . . . Robot Schematics Acquired . | . . . . Robots Built . | . . . . Authchips . | . . . . Time . | . . . . Total Robot Build Rating . | . . . . Part Schematics Acquired . | . . . . Parts Built . | . . . . Authchips . | . . . . Time . | . . . . Total Part Build Rating . | . . . . Part Studies Acquired . | . . . . Parts Repaired . | . . . . Time . | . . . . Parts Recycled . | . . . . Recycled Matter . | . . . . Retrieved Matter . | . . . . Retrieved Components . | . . . . Parts Scanalyzed . | . . . . Part Schematics Acquired . | . . . . Parts Damaged . | . . . . Bothacking | -11 -10 -10 -10 ------------ Run | Yrd Mat Min Exi Used RIF Installer . | . . . . Robots Hacked . | . . . . Non-combat . | . . . . Combat . | . . . . Robot Hacks Applied . | . . . . Relay Couplers Released . | . . . . Fabnet Peak Effective % . | . . . . Robots Rewired . | . . . . Allies Hacked . | . . . . Hacks Repelled . | . . . . Allies | -11 -10 -10 -10 -------- Run | Yrd Mat Min Exi Total Allies . | . . . . Largest Group . | . . . . Highest-Rated Group . | . . . . Highest-Rated Ally . | . . . . Total Orders . | . . . . Ally Attacks . | . . . . Total Damage . | . . . . Kills . | . . . . Allies Corrupted . | . . . . Allies Melted . | . . . . Intel | -11 -10 -10 -10 ------- Run | Yrd Mat Min Exi Active Infowar (turns) . | . . . . Robot Analysis Total . | . . . . Derelict Logs Recovered . | . . . . Drone Launches . | . . . . Drone Recoveries . | . . . . Exploration | -11 -10 -10 -10 ------------- Run | Yrd Mat Min Exi Turns Passed 666 | 68 129 135 334 Spaces Moved 480 | 29 83 107 261 Core 10 | 10 . . . Treads . | . . . . Legs 470 | 19 83 107 261 Wheels . | . . . . Hover . | . . . . Flight . | . . . . Fastest Speed 50 | 50 120 120 120 Average Speed 121 | 145 120 120 120 Slowest Speed 200 | 200 120 120 190 Overloaded Moves . | . . . . Propulsion Burnouts . | . . . . Robots Hopped . | . . . . Potential Cave-ins . | . . . . Cave-ins Triggered . | . . . . Exploration Rate (%) 26 | 4 19 26 57 Regions Visited 3 Branch Regions 2 Pre-discovered Areas 1 | . . . 1 Known Exits Taken . | . . . . Unknown Exits Taken 3 | 1 1 1 . Scrap Searched 1 | . . 1 . Spaces Dug . | . . . . Terrain Destroyed . | . . . . Melee . | . . . . Projectile . | . . . . AOE . | . . . . Terrain Rammed . | . . . . Walls Destroyed . | . . . . Machines Disabled . | . . . . Actions | -11 -10 -10 -10 --------- Run | Yrd Mat Min Exi Total 520 | 42 98 109 271 Wait 8 | 1 6 1 . Move 477 | 28 82 106 261 Hop . | . . . . Pick Up 5 | 2 1 . 2 Fast Attach 8 | 6 1 . 1 Attach 1 | . . . 1 Detach 2 | . 1 . 1 Swap . | . . . . Drop . | . . . . Fire 19 | 5 7 2 5 Melee . | . . . . Ram . | . . . . Kick . | . . . . Crush . | . . . . Escape Stasis . | . . . . Rewire . | . . . . Trap . | . . . . Miscellaneous . | . . . . Route ------- -11/Scrapyard -10/Materials -10/Mines (discovered 2 exits: [*Mat] / *Exi) -10/Exiles History --------- Turn | Location | Event 9 | -11/Scrapyard | Discovered new exit (range 16) 69 | -11/Scrapyard | Entered Materials 173 | -10/Materials | Discovered new exit (range 7) 198 | -10/Materials | Entered Mines 277 | -10/Mines | Discovered new exit (range 8) 300 | -10/Mines | Build established: Mutant 327 | -10/Mines | Deemed a non-threat by the Exiles lab entrance 328 | -10/Mines | Discovered new exit (range 5) 333 | -10/Mines | Entered Exiles 362 | -10/Exiles | Met 8R-AWN 383 | -10/Exiles | Met EX-HEX 427 | -10/Exiles | Met EX-DEC 453 | -10/Exiles | Met EX-BIN 474 | -10/Exiles | Learned location of Zion (-6) 638 | -10/Exiles | Attacked by the Exiles 666 | -10/Exiles | Core integrity fell below 50% 667 | -10/Exiles | Core integrity fell below 20% 667 | -10/Exiles | Destroyed by DAS Turret with DAS Cannon Last Messages --------------- science. 00506_ Acquired Lrg. Storage Unit. 00531_ Acquired Med. Matter Pod. 00558_ RI 2# CAVLWH80H|9%NP 00615_ System corrupted: Component data lost. 00621_ Acquired Med. Storage Unit. 00638_ EXILES: Hostile robot within lab perimeter. Defensive protocols time, folks! 00645_ Machine disabled. 00645_ Acquired 6 matter. 00649_ Ion Engine destroyed. 00650_ EX-BIN: "I just want to science!" 00651_ Aluminum Leg destroyed. 00653_ Assault Rifle destroyed. 00655_ System corrupted: Matter fused (-8). 00658_ Aluminum Leg destroyed. 00660_ Med. Laser destroyed. 00660_ Knocked back. 00661_ Acquired 6 matter. 00666_ Mining Laser destroyed. Map ----- +----------------------------------------------------+ | "#??????????????????????????" ????? | | "#??????????????????????????" ????? | | ""#??????????########????????" ????? | | ""#??????????# """#????????" ?????? | | ""#??????????#"" """#????????# ??????? | | ###??????????#"" #????????# ???????? | | #????????????#"" #????????#" ????????? | | ##???????????#"" "#????????#" ?????????? | | "#???????????# ""#????????#" ??????????? | | ###?????????#"" ""#???????##" #??????????? | | ##????????### ###??????##"" #??????????? | | "" ######???### ###?######"" #??????????? | | #" """#####X# #"###""""""" ##?????????? | | #" """""" " "" ##?????#??? | | #"# "" """ " #####""""" | | #### " " " """ | | ???### "" | | ?????### " | | ???????## | | ????????## | | ?????????##" | | ??????????#""" """""" | | ?????????##" ######""" | | ?????????#"" a%""##?????####""" | | ?????????#""" aa"##??????????#""" | | ?????????""" a@##???????????#"""" | | ?????????""" aaa"#???????????##"" | | ????????#"" %########??####"""" | | ?????????"""t %%## ####""" | | ?????????"" z %""" | | ?????????#"" | | ?????????#"""" | | ??????????# " | | ??????????#" " "" "" | | ??????????#"""" ""## ##""" " " ""# | | ??????????#"" ""#### ######""" """# | | ???????????? """"##??# #????###""""## | | ???????????""" """#??## ####???######? | | ???????????? ""##??#! "!#?????????? | | ????????????"" """##???#" !#?????????? | | ?????????????""" #?????#" "#?????????? | | ???????????????""" #??????#!!"" "#?????????? | | ????????????????? ???????########?????????? | | ??????????????????## ?????????????????????????? | | ????????????????????? ?????????????????????????? | | ?????????????????????????????????????????????????? | | ?????????????????????????????????????????????????? | | ?????????????????????????????????????????????????? | | ?????????????????????????????????????????????????? | | ?????????????????????????????????????????????????? | +----------------------------------------------------+ Best States ------------- Heat Dissipation 25 Energy Generation 10 Energy Capacity 250 Matter Stores 300 Matter Capacity 300 Sight Range 16 Terrain Scan Density 10 Evasion (%) 55 Item Schematics ----------------- None Robot Schematics ------------------ None Fabricated ------------ Nothing Repaired ---------- Nothing Studied --------- None Alien Tech Used ----------------- None Achievements -------------- None Challenges ------------ None Game ------ Seed LatentPropulsionBotcube Manual? 0 Play Time 00:05:48 Cumulative 370.8 hours Start 2025.10.24 @ 20:01:05 End 2025.10.24 @ 20:05:10 Sessions 1 Manual Loads 0 Difficulty Rogue Special Mode None Game No. 158 Rogue 87 Adventurer 68 Explorer 3 Win Type - Total 30 Types 18/2/2/4/3/0/0/0/0/1 Lore% 78 Gallery% 75 Achievement% 44 Wizard Run 0 Options --------- Layout 0 ASCII 0 Keyboard 0 Movement Numpad Keybinds 0 Fullscreen 1 Font 24/Smallcaps Map View 76x50 Zoom Use 0% Tactical HUD 1 Map Filters NONE Filters NONE Steam 1 RUN: 25ac0e58-2b0f-40ce-84eb-632370ffa69e